[Event "CCT Chessable Masters Place D-II 2024"]
[Site "Online"]
[Date "2024.02.01"]
[Round "2"]
[White "Grischuk, Alexander"]
[Black "GMBenjaminBok"]
[Result "0-1"]
[ECO "D02"]
[WhiteElo "2732"]
[BlackElo "2617"]
[Annotator "TA"]
[PlyCount "78"]
[EventDate "2024.01.12"]
[EventType "k.o."]
[EventCountry "NET"]
[SourceTitle "playchess.com"]
[Source "ChessBase"]
[SourceQuality "1"]
[TimeControl "600+2"]

{[%evp 9,78,15,21,17,24,10,18,6,2,8,10,20,7,11,20,12,10,0,0,-31,-42,-35,-36,-39,13,16,20,24,35,-50,-36,-75,-83,-88,-84,-77,-50,-97,-105,-212,-214,-358,-349,-424,-422,-637,-502,-639,-645,-616,-622,-595,-577,-542,-469,-555,-551,-788,-772,-1020,-1016,-862,-799,-29989,-29990,-29991,-29983,-29991,-29992,-29992,-29993]} 1. d4 {[%emt 0:00:04]} Nf6 {[%emt 0:00:04]} 2. Bf4 {[%emt 0:00:06]} d5 {[%emt 0:00:04]} 3. Nf3 {[%emt 0:00:01]} e6 {[%emt 0:00:02]} 4. e3 {[%emt 0:00:08]} c5 {[%emt 0:00:01]} 5. Nbd2 {[%emt 0:00:01]} Qb6 {[%emt 0:00:03]} 6. Rb1 {[%emt 0:00:01]} Bd6 {[%emt 0:00:07]} 7. dxc5 {[%emt 0:00:02]} Qxc5 {[%emt 0:00:00]} 8. Bg5 {[%emt 0:00:01][%cal Bf4g5,Bg5h4,Bh4g3][%mdl 32] The position is equal.} Nbd7 {[%emt 0:01:29]} 9. c4 {[%emt 0:00:05]} h6 {[%emt 0:00:58]} 10. Bh4 {[%emt 0:00:10]} O-O {[%emt 0:00:29]} 11. b4 {[%emt 0:01:13] Prevents b6} Qc7 {[%emt 0:00:08]} 12. c5 {[%emt 0:00:00]} Be7 {[%emt 0:00:16]} 13. Bg3 {[%emt 0:00:31]} e5 {[%emt 0:00:50]} 14. Qb3 {[%emt 0:04:15]} a5 {[%emt 0:01:09]} 15. a3 {[%emt 0:00:03]} axb4 {[%emt 0:00:02]} 16. axb4 {[%emt 0:00:01]} Ne4 {[%emt 0:01:00]} (16... b6 $15 17. cxb6 Qb8) 17. Nxe4 $11 {[%emt 0:00:28]} dxe4 {[%emt 0:00:00]} 18. Nd2 {[%emt 0:00:01][%cal Of1b5]} b6 {[%emt 0:00:02]} 19. Be2 {[%emt 0:01:53]} ({Better is} 19. Nc4 $14) 19... bxc5 $15 {[%emt 0:00:06]} 20. b5 {[%emt 0:00:01][%cal Ob5b6] [#]} Nb6 $1 {[%emt 0:00:39]} 21. O-O {[%emt 0:00:22][%cal Od2c4]} Be6 {[%emt 0:00:05]} 22. Qc3 {[%emt 0:00:01]} Ra2 {[%emt 0:00:28] ...Rd8 is the strong threat.} 23. Rfd1 {[%emt 0:00:32] White is now going downhill.} (23. Ra1 $15 {is superior.} Rfa8 24. Rxa2 Rxa2 25. Ra1 Rxa1+ 26. Qxa1) 23... f6 {[%emt 0:00:35] Threatens to win with ...c4. Black is much more active.} 24. Bf1 {[%emt 0:00:34] [#]} (24. Bc4 $17 Nxc4 25. Nxc4) 24... c4 $1 $19 {[%emt 0:00:45]} 25. Nxe4 {[%emt 0:00:03]} (25. Ra1 {might work better.} Rxa1 26. Rxa1) 25... Na4 {[%emt 0:00:02]} 26. Qc1 {[%emt 0:00:02]} Ba3 {[%emt 0:00:21]} 27. Rd2 {[%emt 0:00:11]} (27. Bxc4 $142 Qxc4 (27... Bxc1 28. Bxe6+ Kh7 29. Bxa2 $11) 28. Qxc4 Bxc4 29. h3) 27... Bxc1 {[%emt 0:00:14]} 28. Rxa2 {[%emt 0:00:01]} c3 {[%emt 0:00:13]} 29. Rxa4 {[%emt 0:00:02]} Bb2 {[%emt 0:00:03] White must now prevent ...c2.} 30. b6 {[%emt 0:00:06]} Qc6 {[%emt 0:00:06]} (30... Qxb6 31. Nxc3 Qb3 32. Ra2 $17) 31. Nxc3 {[%emt 0:00:01]} Bxc3 {[%emt 0:00:01]} 32. Ra7 {[%emt 0:00:02]} Rb8 {[%emt 0:00:09]} 33. Rc1 {[%emt 0:00:03]} Qxb6 {[%emt 0:00:11]} 34. Ra6 {[%emt 0:00:01]} Qb2 {[%emt 0:00:02]} 35. Rd1 {[%emt 0:00:03]} Qc2 {[%emt 0:00:22]} 36. Rdd6 {[%emt 0:00:02] [#]} Rb1 $1 {[%emt 0:00:04] Black mates.} 37. h4 {[%emt 0:00:02]} (37. Rd8+ Kh7) 37... Bc4 {[%emt 0:00:03]} 38. h5 {[%emt 0:00:02]} Rxf1+ {[%emt 0:00:02]} 39. Kh2 {[%emt 0:00:01]} Bxa6 {[%emt 0:00:00] Weighted Error Value: White=0.76/Black=0.08 (flawless) .  Mistake:       	White=5     	Black=1      Inaccurate:     	White=4     	Black=1      OK:         	White=10    	Black=12     Best:        	---       	Black=3      Strong:       	---       	Black=2} 0-1

[Event "CCT Chessable Masters Place D-II 2024"]
[Site "Online"]
[Date "2024.02.01"]
[Round "2"]
[White "Grischuk, Alexander"]
[Black "GMBenjaminBok"]
[Result "1/2-1/2"]
[ECO "D02"]
[WhiteElo "2732"]
[BlackElo "2623"]
[Annotator "TA"]
[PlyCount "111"]
[EventDate "2024.01.12"]
[EventType "k.o."]
[EventCountry "NET"]
[SourceTitle "playchess.com"]
[Source "ChessBase"]
[SourceQuality "1"]
[TimeControl "600+2"]

{[%evp 29,111,-20,0,-65,-22,-74,-72,-80,-79,-96,-83,-184,-135,-127,-124,-120,-123,-140,-107,-128,-112,-112,-113,-183,-141,-185,-203,-196,-169,-208,-208,-203,-89,-114,-100,-108,-98,-88,-87,-85,-32,-51,-22,-44,-30,-53,-30,-87,-85,-56,-10,-116,-123,-122,-124,-235,-224,-245,-47,-39,0,-250,-131,-129,-10,-8,-8,-13,0,-8,0,0,0,0,0,0,-8,-8,0,-8,0,-8,0,0]} 1. d4 {[%emt 0:00:03]} Nf6 {[%emt 0:00:04]} 2. Bf4 {[%emt 0:00:01]} d5 {[%emt 0:00:02]} 3. Nf3 {[%emt 0:00:02]} e6 {[%emt 0:00:02]} 4. e3 {[%emt 0:00:02]} c5 {[%emt 0:00:00]} 5. c3 {[%emt 0:00:01]} Bd6 {[%emt 0:00:02]} 6. Bd3 {[%emt 0:00:03]} O-O {[%emt 0:00:23]} 7. Ne5 {[%emt 0:00:58]} Qc7 {[%emt 0:01:00] D02: 1 d4 d5 2 Nf3 sidelines, including 2...Nf6 3 g3 and 2...Nf6 3 Bf4.} 8. Nd2 {[%emt 0:00:11]} b6 {[%emt 0:01:56]} 9. Qe2 {[%emt 0:00:44]} a5 {[%emt 0:00:57]} 10. Bg5 $146 {[%emt 0:00:16]} ({Predecessor:} 10. h4 Nbd7 11. Ndf3 Ne4 12. Ng5 Nxe5 13. dxe5 Bxe5 14. Nxe4 Bxf4 15. Ng5 h6 16. exf4 Qxf4 {1-0 Bluebaum,M (2669)-Keymer,V (2700) ChessKid Cup Div 3 L rapid 2023 (2.2)}) 10... Nfd7 {[%emt 0:01:10]} 11. f4 {[%emt 0:03:33]} Ba6 {[%emt 0:00:18]} 12. O-O {[%emt 0:01:10]} Bxd3 {[%emt 0:00:26]} 13. Nxd3 {[%emt 0:00:00]} f6 {[%emt 0:00:30]} 14. Bh4 {[%emt 0:00:02]} Nc6 {[%emt 0:00:06]} 15. Qg4 {[%emt 0:00:23]} Rae8 {[%emt 0:00:17]} 16. Kh1 {[%emt 0:00:09]} (16. a4 $11) 16... b5 {[%emt 0:00:31]} 17. a3 {[%emt 0:00:55]} (17. dxc5 $11 {keeps the balance.} Nxc5 18. Nxc5 Bxc5 19. Qe2) 17... c4 $17 {[%emt 0:00:44]} 18. Nf2 {[%emt 0:00:02]} Nb6 {[%emt 0:00:03]} 19. Nf3 {[%emt 0:00:37]} Na4 {[%emt 0:01:15]} 20. f5 {[%emt 0:00:15]} (20. Ra2 $17) 20... Qd7 {[%emt 0:00:17]} ({Black should play} 20... Nxb2 $19 21. fxe6 f5) 21. fxe6 $17 {[%emt 0:00:24]} Qxe6 {[%emt 0:00:00]} 22. Qxe6+ {[%emt 0:00:01]} Rxe6 {[%emt 0:00:00]} 23. Nd1 {[%emt 0:00:00]} Rfe8 {[%emt 0:00:16]} 24. Nd2 {[%emt 0:00:17]} Ne7 {[%emt 0:00:06]} 25. Rb1 {[%emt 0:00:23]} Nb6 {[%emt 0:00:05]} 26. Rf3 {[%emt 0:00:05]} (26. g4 $17) 26... h5 {[%emt 0:00:04]} 27. h3 {[%emt 0:00:08]} g5 {[%emt 0:00:03]} 28. Be1 {[%emt 0:00:03]} Kg7 {[%emt 0:00:03]} 29. b3 {[%emt 0:00:07]} Bxa3 {[%emt 0:00:11]} 30. bxc4 {[%emt 0:00:00]} bxc4 {[%emt 0:00:05]} (30... Nxc4 $19 {has better winning chances. ...Rb8 is the strong threat.} 31. Nxc4 bxc4) 31. Ra1 $17 {[%emt 0:00:02]} Bd6 $1 {[%emt 0:00:01]} ({Don't do} 31... g4 32. hxg4 hxg4 33. Rg3 $11) 32. Rxa5 {[%emt 0:00:01]} Ra8 {[%emt 0:00:03]} 33. Rxa8 {[%emt 0:00:04]} Nxa8 {[%emt 0:00:00]} 34. g4 {[%emt 0:00:03]} hxg4 {[%emt 0:00:02]} (34... h4 $17 35. Rf1 Kg6) 35. hxg4 $15 {[%emt 0:00:01]} Nb6 {[%emt 0:00:01]} 36. Kg2 {[%emt 0:00:00]} Kg6 {[%emt 0:00:00]} 37. Bg3 {[%emt 0:00:03]} Bxg3 {[%emt 0:00:03]} 38. Kxg3 {[%emt 0:00:02]} (38. Rxg3 $11 Nbc8 39. Kf2) 38... f5 $17 {[%emt 0:00:01]} 39. Rf1 {[%emt 0:00:06]} Nbc8 {[%emt 0:00:05]} (39... Nd7 $15 40. Re1 Nf6) 40. Kf3 {[%emt 0:00:03] [#]} (40. Nf3 $11) 40... fxg4+ $1 $17 {[%emt 0:00:06]} 41. Kxg4 {[%emt 0:00:00]} Nd6 {[%emt 0:00:00]} 42. Kf3 {[%emt 0:00:03]} (42. Rf8 $17) 42... Nef5 $19 {[%emt 0:00:02]} 43. Rg1 {[%emt 0:00:00]} Rf6 $2 {[%emt 0:00:04]} ({Better is} 43... Re8 $19 {...Kh5 would now be deadly.} 44. Re1 Kh5) 44. Ke2 $15 {[%emt 0:00:01]} Re6 $2 {[%emt 0:00:02]} (44... Rf8 $15 45. Nf2 Re8) 45. Kf3 $1 $19 {[%emt 0:00:01]} Nh4+ {[%emt 0:00:02]} ({Black should try} 45... Re8 $19 {And now ...Kh5 would win.} 46. Re1 Rf8) 46. Ke2 $17 {[%emt 0:00:03] [#]} Ndf5 {[%emt 0:00:01]} (46... Kh5 $1 $17 {Hoping for ...Re8.} 47. Nf1 Re8 48. Ng3+ Kg6) 47. e4 $1 $11 {[%emt 0:00:03]} dxe4 {[%emt 0:00:02]} 48. Nxc4 {[%emt 0:00:02]} Nf3 {[%emt 0:00:03]} 49. Rg2 {[%emt 0:00:04]} Ra6 {[%emt 0:00:02]} 50. Nde3 {[%emt 0:00:02]} Ra2+ {[%emt 0:00:02]} 51. Kd1 {[%emt 0:00:01]} Nxe3+ {[%emt 0:00:03]} 52. Nxe3 {[%emt 0:00:00]} Ra1+ {[%emt 0:00:01]} 53. Ke2 {[%emt 0:00:01]} Ra2+ {[%emt 0:00:01]} 54. Kd1 {[%emt 0:00:06]} Ra1+ {[%emt 0:00:01]} 55. Ke2 {[%emt 0:00:00]} Ra2+ {[%emt 0:00:01]} 56. Kd1 {[%emt 0:00:01]} 1/2-1/2

[Event "CCT Chessable Masters Place D-II 2024"]
[Site "Online"]
[Date "2024.02.01"]
[Round "2"]
[White "LevonAronian"]
[Black "Lysyj, Igor"]
[Result "1-0"]
[ECO "C50"]
[WhiteElo "2726"]
[BlackElo "2589"]
[Annotator "TA"]
[PlyCount "127"]
[EventDate "2024.01.12"]
[EventType "k.o."]
[EventCountry "NET"]
[SourceTitle "playchess.com"]
[Source "ChessBase"]
[SourceQuality "1"]
[TimeControl "600+2"]

{[%evp 50,127,105,100,123,121,131,134,149,141,145,114,100,105,159,107,113,98,143,132,122,0,0,0,58,0,0,-7,-5,-35,-4,-7,-7,-2,0,0,0,0,7,0,0,-1,0,0,8,8,82,82,83,83,528,489,660,644,1733,1703,6089,6075,1346,707,700,681,619,619,29970,29971,29977,29972,29971,29973,29973,29974,29978,29977,29978,29971,29983,29984,29984,29985]} 1. e4 {[%emt 0:00:03]} e5 {[%emt 0:00:04]} 2. Nf3 {[%emt 0:00:02]} Nc6 {[%emt 0:00:03]} 3. Bc4 {[%emt 0:00:02]} Bc5 {[%emt 0:00:02]} 4. d3 {[%emt 0:00:04]} Nf6 {[%emt 0:00:02]} 5. a4 {[%emt 0:00:01]} d6 {[%emt 0:00:04]} 6. a5 {[%emt 0:00:04] C50: Hungarian Defence and Giuoco Pianissimo.} a6 {[%emt 0:00:03]} 7. c3 {[%emt 0:00:06]} Ba7 {[%emt 0:00:04]} 8. O-O {[%emt 0:00:02]} O-O {[%emt 0:00:03]} 9. Be3 {[%emt 0:00:07]} Bxe3 {[%emt 0:00:03]} 10. fxe3 {[%emt 0:00:00]} Ne7 {[%emt 0:00:01]} 11. Nbd2 {[%emt 0:00:22]} Ng6 {[%emt 0:00:04]} 12. b4 $1 $146 {[%emt 0:00:03][%mdl 8] A top novelty.} ({Predecessor:} 12. d4 Qe7 13. Qc2 Be6 14. Bd3 Rae8 15. b4 Bd7 16. Rae1 h6 17. c4 Qd8 18. d5 {½-½ Warakomski,T (2541)-Van Foreest,L (2589) POL-chT Ekstraliga 2022 (8.5)}) 12... b5 {[%emt 0:00:11]} 13. axb6 {[%emt 0:00:18]} cxb6 {[%emt 0:00:03]} 14. d4 {[%emt 0:00:03]} Bb7 {[%emt 0:00:15]} 15. d5 {[%emt 0:00:55]} Qc7 {[%emt 0:00:36]} 16. Rc1 {[%emt 0:00:26]} a5 {[%emt 0:00:04]} 17. Bd3 {[%emt 0:00:44]} Rfb8 {[%emt 0:00:30]} 18. h3 {[%emt 0:00:28]} Bc8 {[%emt 0:00:05]} 19. Kh2 {[%emt 0:00:02]} Bd7 {[%emt 0:00:06]} 20. Qe2 {[%emt 0:00:05]} Qd8 {[%emt 0:00:32]} 21. Nc4 {[%emt 0:00:19]} Be8 {[%emt 0:00:07]} 22. Nfd2 {[%emt 0:00:10]} Rc8 {[%emt 0:00:44]} 23. Ra1 {[%emt 0:00:18]} h6 {[%emt 0:00:16]} 24. Rfb1 {[%emt 0:00:05]} a4 {[%emt 0:00:58]} 25. Rc1 {[%emt 0:00:04]} Qc7 {[%emt 0:00:27]} 26. Na3 {[%emt 0:00:04]} Qd8 {[%emt 0:00:07]} 27. Bb5 {[%emt 0:00:05]} Ne7 {[%emt 0:00:32]} 28. c4 {[%emt 0:00:11]} Bd7 {[%emt 0:00:15]} 29. Rf1 {[%emt 0:00:03]} Ng6 {[%emt 0:00:12]} 30. Qd1 {[%emt 0:00:16]} Nf8 {[%emt 0:00:03]} 31. Bxd7 {[%emt 0:00:06]} Qxd7 {[%emt 0:00:05]} (31... N8xd7 $142 32. Nb5 Ne8) 32. Nb5 {[%emt 0:00:11]} (32. Rxf6 $142 gxf6 33. Nf1) 32... N8h7 $16 {[%emt 0:00:23]} 33. Rxa4 {[%emt 0:00:17]} Rxa4 {[%emt 0:00:02]} 34. Qxa4 {[%emt 0:00:01]} Ng5 {[%emt 0:00:01]} 35. Nc3 {[%emt 0:00:28]} ({White must play} 35. Rxf6 $1 $16 gxf6 36. Qa6) 35... Qxa4 $1 $11 {[%emt 0:00:10]} 36. Nxa4 {[%emt 0:00:02]} Ngxe4 {[%emt 0:00:03]} (36... Nfxe4 $11 37. Nxe4 (37. Nxb6 Nxd2 38. Rd1 Rb8 $19) 37... Nxe4 38. Nxb6 Rb8) 37. Nxe4 {[%emt 0:01:14]} (37. Nxb6 $14 Rb8 (37... Nxd2 $2 38. Rxf6 Rd8 39. Rf2 $18) 38. Rxf6 (38. Nxe4 Nxe4 39. c5 dxc5 $11) 38... Nxf6 39. c5) 37... Nxe4 $11 {[%emt 0:00:02]} 38. Rc1 {[%emt 0:00:02]} Rb8 {[%emt 0:00:11]} (38... b5 $5 39. Nb6 $8 Rb8 $11 (39... Rc7 40. c5 $11)) 39. g4 {[%emt 0:00:07]} b5 {[%emt 0:00:18]} 40. Nc3 {[%emt 0:00:10]} Nxc3 {[%emt 0:00:28]} 41. Rxc3 {[%emt 0:00:00]} bxc4 {[%emt 0:00:59]} 42. Rxc4 {[%emt 0:00:00]} g6 {[%emt 0:00:02]} 43. Kg3 {[%emt 0:00:03]} f5 {[%emt 0:00:09]} 44. gxf5 {[%emt 0:00:06]} gxf5 {[%emt 0:00:01]} 45. Kf3 {[%emt 0:01:22]} Kg7 {[%emt 0:00:12]} 46. Rc7+ {[%emt 0:00:11]} Kg6 {[%emt 0:00:08]} 47. Rc6 {[%emt 0:00:06]} Rxb4 {[%emt 0:00:13]} (47... h5 $11) 48. Rxd6+ $16 {[%emt 0:00:01]} Kg5 {[%emt 0:00:00]} 49. Re6 {[%emt 0:00:01]} Rh4 $2 {[%emt 0:00:39][%mdl 8192]} (49... e4+ $16 {is more resistant.} 50. Kg3 f4+ 51. exf4+ Kf5) 50. Rxe5 $18 {[%emt 0:00:03]} Rxh3+ {[%emt 0:00:02]} 51. Kg2 {[%emt 0:00:01]} Rh4 {[%emt 0:00:26]} 52. d6 {[%emt 0:00:01]} Ra4 {[%emt 0:00:03] [#]} 53. Rd5 $1 {[%emt 0:00:15]} (53. d7 Ra2+ 54. Kf3 Rd2 $11) 53... Ra8 {[%emt 0:00:03]} 54. e4 {[%emt 0:00:01]} Kf4 {[%emt 0:00:16]} 55. d7 {[%emt 0:00:25]} (55. Rxf5+ Kxe4 56. Rh5 Rg8+ 57. Kh2 Rg6 $11) 55... Rd8 {[%emt 0:00:03] [#]} 56. e5 $1 {[%emt 0:00:02]} ({And not} 56. Rxf5+ Kxe4 57. Rf7 Kd5 $11) 56... Kg5 {[%emt 0:00:00]} 57. Kf3 {[%emt 0:00:08]} Kg6 {[%emt 0:00:05]} 58. Kf4 {[%emt 0:00:07]} Kf7 {[%emt 0:00:03]} 59. Kxf5 {[%emt 0:00:03]} Ke7 {[%emt 0:00:00]} 60. e6 {[%emt 0:00:03]} h5 {[%emt 0:00:01]} 61. Rd4 {[%emt 0:00:10]} Rh8 {[%emt 0:00:04]} 62. Kg6 {[%emt 0:00:11]} h4 {[%emt 0:00:03]} 63. d8=Q+ {[%emt 0:00:03]} ({Worse is} 63. Kg7 Rd8 $11) 63... Rxd8 {[%emt 0:00:01]} 64. Rxd8 {[%emt 0:00:02]} ({Stronger than} 64. Rxh4 Kxe6 65. Kg5 Rf8 $11) 1-0

[Event "CCT Chessable Masters Place D-II 2024"]
[Site "Online"]
[Date "2024.02.01"]
[Round "2"]
[White "jefferyx"]
[Black "Shevchenko, Kirill"]
[Result "1-0"]
[ECO "E73"]
[WhiteElo "2674"]
[BlackElo "2651"]
[Annotator "ChessBase"]
[PlyCount "137"]
[EventDate "2024.01.12"]
[EventType "k.o."]
[EventCountry "NET"]
[SourceTitle "playchess.com"]
[Source "ChessBase"]
[SourceQuality "1"]
[TimeControl "600+2"]

1. d4 {[%emt 0:00:02]} Nf6 {[%emt 0:00:05]} 2. c4 {[%emt 0:00:01]} g6 {[%emt 0:00:04]} 3. Nc3 {[%emt 0:00:01]} Bg7 {[%emt 0:00:01]} 4. e4 {[%emt 0:00:02]} d6 {[%emt 0:00:00]} 5. Be2 {[%emt 0:00:00]} O-O {[%emt 0:00:01]} 6. Be3 {[%emt 0:00:01]} e5 {[%emt 0:00:08]} 7. d5 {[%emt 0:00:20]} Na6 {[%emt 0:00:03]} 8. h4 {[%emt 0:00:29]} Nc5 {[%emt 0:00:04]} 9. Bxc5 {[%emt 0:00:04]} dxc5 {[%emt 0:00:01]} 10. h5 {[%emt 0:00:00]} Ne8 {[%emt 0:00:43]} 11. Qd2 {[%emt 0:00:09]} Nd6 {[%emt 0:00:03]} 12. Nf3 {[%emt 0:00:02]} a6 {[%emt 0:00:22]} 13. a3 {[%emt 0:00:09]} Bg4 {[%emt 0:03:14]} 14. hxg6 {[%emt 0:00:08]} hxg6 {[%emt 0:00:10]} 15. b4 {[%emt 0:00:10]} b6 {[%emt 0:00:07]} 16. Qe3 {[%emt 0:01:10]} Bxf3 {[%emt 0:00:42]} 17. Qxf3 {[%emt 0:00:33]} Qg5 {[%emt 0:00:01]} 18. Qh3 {[%emt 0:00:21]} Rfb8 {[%emt 0:00:39]} 19. Rb1 {[%emt 0:00:20]} cxb4 {[%emt 0:00:16]} 20. axb4 {[%emt 0:00:02]} a5 {[%emt 0:00:01]} 21. bxa5 {[%emt 0:01:09]} Rxa5 {[%emt 0:00:03]} 22. O-O {[%emt 0:00:01]} Rd8 {[%emt 0:01:16]} 23. Qd3 {[%emt 0:00:32]} Bh6 {[%emt 0:00:10]} 24. Nb5 {[%emt 0:00:07]} Nxb5 {[%emt 0:00:05]} 25. cxb5 {[%emt 0:00:00]} Bf8 {[%emt 0:00:00]} 26. Ra1 {[%emt 0:01:51]} Rda8 {[%emt 0:00:03]} 27. Rxa5 {[%emt 0:00:33]} Rxa5 {[%emt 0:00:01]} 28. g3 {[%emt 0:00:30]} Bc5 {[%emt 0:00:05]} 29. Bd1 {[%emt 0:00:13]} Ra2 {[%emt 0:00:42]} 30. Bb3 {[%emt 0:00:03]} Rb2 {[%emt 0:00:07]} 31. Qf3 {[%emt 0:00:03]} Qe7 {[%emt 0:00:14]} 32. d6 {[%emt 0:00:37]} cxd6 {[%emt 0:00:06]} 33. Kg2 {[%emt 0:00:10]} Kg7 {[%emt 0:00:01]} 34. Bc4 {[%emt 0:00:18]} Bd4 {[%emt 0:00:01]} 35. Qa3 {[%emt 0:00:08]} Qc7 {[%emt 0:00:28]} 36. Bd5 {[%emt 0:00:09]} Qd7 {[%emt 0:00:25]} 37. Bc6 {[%emt 0:00:06]} Qe6 {[%emt 0:00:07]} 38. Qf3 {[%emt 0:00:01]} Qe7 {[%emt 0:00:05]} 39. Qa3 {[%emt 0:00:04]} Rc2 {[%emt 0:00:14]} 40. Qd3 {[%emt 0:00:05]} Rc3 {[%emt 0:00:03]} 41. Qe2 {[%emt 0:00:01]} Qg5 {[%emt 0:00:01]} 42. Rd1 {[%emt 0:00:08]} Rb3 {[%emt 0:00:03]} 43. Rd2 {[%emt 0:00:08]} Rb1 {[%emt 0:00:01]} 44. Bd7 {[%emt 0:00:12]} Qh6 {[%emt 0:00:12]} 45. Bh3 {[%emt 0:00:01]} Qh5 {[%emt 0:00:08]} 46. Qxh5 {[%emt 0:00:03]} gxh5 {[%emt 0:00:01]} 47. Bd7 {[%emt 0:00:01]} Kf6 {[%emt 0:00:04]} 48. f4 {[%emt 0:00:00]} Rg1+ {[%emt 0:00:02]} 49. Kh3 {[%emt 0:00:01]} Rf1 {[%emt 0:00:02]} 50. Kg2 {[%emt 0:00:02]} Rg1+ {[%emt 0:00:03]} 51. Kh3 {[%emt 0:00:01]} Ke7 {[%emt 0:00:01]} 52. Bc6 {[%emt 0:00:01]} Be3 {[%emt 0:00:01]} 53. Rg2 {[%emt 0:00:04]} Rh1+ {[%emt 0:00:03]} 54. Rh2 {[%emt 0:00:01]} Rxh2+ {[%emt 0:00:03]} 55. Kxh2 {[%emt 0:00:00]} exf4 {[%emt 0:00:01]} 56. Kg2 {[%emt 0:00:00]} Bc1 {[%emt 0:00:04]} 57. Kf3 {[%emt 0:00:01]} fxg3 {[%emt 0:00:01]} 58. Kxg3 {[%emt 0:00:01]} Bg5 {[%emt 0:00:01]} 59. Bb7 {[%emt 0:00:00]} Kf6 {[%emt 0:00:03]} 60. Bd5 {[%emt 0:00:01]} Kg7 {[%emt 0:00:03]} 61. Bb7 {[%emt 0:00:02]} Be7 {[%emt 0:00:01]} 62. Kf4 {[%emt 0:00:03]} Kg6 {[%emt 0:00:01]} 63. Bc8 {[%emt 0:00:01]} Bg5+ {[%emt 0:00:03]} 64. Kf3 {[%emt 0:00:00]} Kf6 {[%emt 0:00:00]} 65. Bd7 {[%emt 0:00:03]} Ke5 {[%emt 0:00:03]} 66. Be8 {[%emt 0:00:01]} Ke6 {[%emt 0:00:01]} 67. Kg3 {[%emt 0:00:00]} Be7 {[%emt 0:00:05]} 68. Kf4 {[%emt 0:00:03]} Bf6 {[%emt 0:00:01]} 69. Kg3 {[%emt 0:00:01]} 1-0

[Event "CCT Chessable Masters Place D-II 2024"]
[Site "Online"]
[Date "2024.02.01"]
[Round "2"]
[White "Shevchenko, Kirill"]
[Black "jefferyx"]
[Result "0-1"]
[ECO "C65"]
[WhiteElo "2651"]
[BlackElo "2666"]
[Annotator "ChessBase"]
[PlyCount "126"]
[EventDate "2024.01.12"]
[EventType "k.o."]
[EventCountry "NET"]
[SourceTitle "playchess.com"]
[Source "ChessBase"]
[SourceQuality "1"]
[TimeControl "600+2"]

1. e4 {[%emt 0:00:05]} e5 {[%emt 0:00:04]} 2. Nf3 {[%emt 0:00:07]} Nc6 {[%emt 0:00:01]} 3. Bb5 {[%emt 0:00:07]} Nf6 {[%emt 0:00:01]} 4. d3 {[%emt 0:00:04]} Bc5 {[%emt 0:00:02]} 5. Bxc6 {[%emt 0:00:02]} dxc6 {[%emt 0:00:01]} 6. Nbd2 {[%emt 0:00:03]} Be6 {[%emt 0:00:17]} 7. O-O {[%emt 0:00:06]} Bd6 {[%emt 0:00:47]} 8. b3 {[%emt 0:00:14]} c5 {[%emt 0:00:17]} 9. Nc4 {[%emt 0:00:15]} Bxc4 {[%emt 0:00:09]} 10. bxc4 {[%emt 0:00:01]} Nd7 {[%emt 0:00:01]} 11. Rb1 {[%emt 0:00:12]} b6 {[%emt 0:00:03]} 12. g3 {[%emt 0:00:04]} Nf8 {[%emt 0:00:51]} 13. Bb2 {[%emt 0:01:40]} Ng6 {[%emt 0:00:02]} 14. h4 {[%emt 0:00:39]} h5 {[%emt 0:00:02]} 15. Ne1 {[%emt 0:01:02]} Qd7 {[%emt 0:00:09]} 16. Qf3 {[%emt 0:00:05]} Ne7 {[%emt 0:00:54]} 17. Ng2 {[%emt 0:00:05]} Nc6 {[%emt 0:00:02]} 18. Ne3 {[%emt 0:00:10]} Nd4 {[%emt 0:01:35]} 19. Qg2 {[%emt 0:00:09]} O-O-O {[%emt 0:01:12]} 20. f4 {[%emt 0:01:43]} f6 {[%emt 0:00:04]} 21. Nf5 {[%emt 0:00:41]} Nc6 {[%emt 0:00:47]} 22. Rf2 {[%emt 0:00:27]} Kb8 {[%emt 0:00:03]} 23. Bc3 {[%emt 0:00:05]} Rde8 {[%emt 0:00:32]} 24. Kh1 {[%emt 0:01:11]} Nd4 {[%emt 0:00:10]} 25. Bxd4 {[%emt 0:00:31]} cxd4 {[%emt 0:00:01]} 26. Nxd6 {[%emt 0:00:02]} Qxd6 {[%emt 0:00:00]} 27. Rb3 {[%emt 0:00:23]} f5 {[%emt 0:00:56]} 28. exf5 {[%emt 0:00:19]} exf4 {[%emt 0:00:01]} 29. Rxf4 {[%emt 0:00:00]} Re1+ {[%emt 0:00:01]} 30. Kh2 {[%emt 0:00:03]} Rhe8 {[%emt 0:00:01]} 31. Re4 {[%emt 0:00:00]} R8xe4 {[%emt 0:00:09]} 32. dxe4 {[%emt 0:00:00]} Qe5 {[%emt 0:00:01]} 33. Rf3 {[%emt 0:00:16]} Rxe4 {[%emt 0:00:22]} 34. Kh3 {[%emt 0:00:03]} Kc8 {[%emt 0:00:33]} 35. c5 {[%emt 0:00:05]} Qxc5 {[%emt 0:00:11]} 36. f6 {[%emt 0:00:01]} gxf6 {[%emt 0:00:05]} 37. Rxf6 {[%emt 0:00:00]} Qe7 {[%emt 0:00:30]} 38. Qf3 {[%emt 0:00:02]} Re3 {[%emt 0:00:11]} 39. Qa8+ {[%emt 0:00:11]} Kd7 {[%emt 0:00:00]} 40. Qc6+ {[%emt 0:00:02]} Kd8 {[%emt 0:00:01]} 41. Qd5+ {[%emt 0:00:02]} Qd7+ {[%emt 0:00:06]} 42. Rf5 {[%emt 0:00:04]} Qxd5 {[%emt 0:00:02]} 43. Rxd5+ {[%emt 0:00:01]} Ke7 {[%emt 0:00:00]} 44. Rxd4 {[%emt 0:00:02]} Rc3 {[%emt 0:00:01]} 45. Rd2 {[%emt 0:00:02]} a5 {[%emt 0:00:02]} 46. Kg2 {[%emt 0:00:02]} a4 {[%emt 0:00:02]} 47. Kf2 {[%emt 0:00:01]} Ke6 {[%emt 0:00:01]} 48. Kg2 {[%emt 0:00:04]} b5 {[%emt 0:00:00]} 49. Kf2 {[%emt 0:00:02]} b4 {[%emt 0:00:01]} 50. Kg2 {[%emt 0:00:02]} c5 {[%emt 0:00:00]} 51. Kf2 {[%emt 0:00:01]} Ra3 {[%emt 0:00:01]} 52. g4 {[%emt 0:00:05]} hxg4 {[%emt 0:00:01]} 53. h5 {[%emt 0:00:00]} Rh3 {[%emt 0:00:02]} 54. Kg2 {[%emt 0:00:03]} Rxh5 {[%emt 0:00:00]} 55. Kg3 {[%emt 0:00:01]} Rd5 {[%emt 0:00:01]} 56. Rf2 {[%emt 0:00:02]} Rd4 {[%emt 0:00:02]} 57. Rf8 {[%emt 0:00:02]} Rc4 {[%emt 0:00:01]} 58. Rf2 {[%emt 0:00:02]} Ke5 {[%emt 0:00:01]} 59. Rd2 {[%emt 0:00:01]} a3 {[%emt 0:00:06]} 60. Re2+ {[%emt 0:00:02]} Kd4 {[%emt 0:00:01]} 61. Kxg4 {[%emt 0:00:01]} Kc3+ {[%emt 0:00:01]} 62. Kf3 {[%emt 0:00:04]} Kb2 {[%emt 0:00:02]} 63. Ke3 {[%emt 0:00:01]} Rxc2 {[%emt 0:00:03]} 0-1